bitfinex/quotes_BTCUSD_20251102
["timestamp","ask_amount","ask_price","bid_price","bid_amount"]
[1762107966223,1.0201463,110360.0,110350.0,4.838e-05]
[1762107966480,1.0201463,110360.0,110350.0,0.18128988]
[1762107967401,1.0201463,110360.0,110350.0,4.838e-05]
[1762107967798,1.0201463,110360.0,110350.0,0.18128988]
[1762107968986,0.46844546,110360.0,110350.0,0.18128988]
[1762107970625,0.64967054,110360.0,110350.0,0.18128988]
[1762107971189,0.46844546,110360.0,110350.0,0.18128988]
[1762107971409,0.64967054,110360.0,110350.0,0.18128988]
[1762107971587,0.62243747,110360.0,110350.0,0.18128988]
[1762107972986,0.25196171,110360.0,110350.0,0.18128988]
[1762107973190,0.44121239,110360.0,110350.0,0.18128988]
[1762107973817,0.62243747,110360.0,110350.0,0.18128988]
[1762107974387,0.44121239,110360.0,110350.0,0.18128988]
[1762107974801,0.62243747,110360.0,110350.0,0.18128988]
[1762107975349,0.71225648,110360.0,110350.0,0.18128988]
[1762107976531,0.44121239,110360.0,110350.0,0.18128988]
[1762107976938,0.62243747,110360.0,110350.0,0.18128988]
[1762107978970,0.44121239,110360.0,110350.0,0.18128988]
[1762107979604,0.03455435,110360.0,110350.0,0.20908988]
[1762107979809,0.01500045,110360.0,110350.0,0.20908988]
[1762107980015,0.01500045,110360.0,110350.0,0.18128988]
[1762107980427,0.19622553,110360.0,110350.0,0.18128988]
[1762107980669,0.21577943,110360.0,110350.0,0.18128988]
[1762107981015,0.03455435,110360.0,110350.0,0.18128988]
[1762107981242,0.01500045,110360.0,110350.0,0.18128988]
[1762107981811,0.19622553,110360.0,110350.0,0.18128988]
[1762107982012,0.21577943,110360.0,110350.0,0.18128988]
[1762107982472,0.58625519,110360.0,110350.0,0.18128988]
[1762107982893,0.40503011,110360.0,110350.0,0.18128988]
[1762107983230,0.58625519,110360.0,110350.0,0.18128988]
[1762107985190,0.40503011,110360.0,110350.0,0.18128988]
[1762107985391,0.03455435,110360.0,110350.0,0.18128988]
[1762107985590,0.38547621,110360.0,110350.0,0.18128988]
[1762107985811,0.40503011,110360.0,110350.0,0.18128988]
[1762107986837,0.03455435,110360.0,110350.0,0.18128988]
[1762107987036,0.38547621,110360.0,110350.0,0.18128988]
[1762107987265,0.03455435,110360.0,110350.0,0.18128988]
[1762107987550,0.01500045,110360.0,110350.0,0.18128988]
[1762107990095,0.38547621,110360.0,110350.0,0.18128988]
[1762107990303,0.40503011,110360.0,110350.0,0.18128988]
[1762107992764,0.03455435,110360.0,110350.0,0.18128988]
[1762107992962,0.01500045,110360.0,110350.0,0.18128988]
[1762107993569,0.19622553,110360.0,110350.0,0.18128988]
[1762107993751,0.21577943,110360.0,110350.0,4.838e-05]
[1762107994070,0.58625519,110360.0,110350.0,4.838e-05]
[1762107996687,0.95673095,110360.0,110350.0,4.838e-05]
[1762107998706,0.95673095,110360.0,110350.0,0.18128988]
[1762107999691,0.95673095,110360.0,110350.0,4.838e-05]
[1762108003709,0.95673095,110360.0,110350.0,0.18128988]
[1762108004566,0.58625946,110360.0,110350.0,0.18128988]
[1762108011962,0.58625946,110360.0,110350.0,4.838e-05]
[1762108012911,0.58625946,110360.0,110350.0,0.18128988]
[1762108015909,0.58625946,110360.0,110350.0,4.838e-05]
[1762108017927,0.58625946,110360.0,110350.0,0.18128988]
[1762108018086,0.58625946,110360.0,110350.0,4.838e-05]
[1762108019071,0.58625946,110360.0,110350.0,0.18128988]
[1762108021282,0.40503438,110360.0,110350.0,0.18128988]
[1762108021514,0.58625946,110360.0,110350.0,0.18128988]
[1762108024321,0.58625946,110360.0,110350.0,4.838e-05]
[1762108025373,0.58625946,110360.0,110350.0,0.18128988]
[1762108025585,0.40503438,110360.0,110350.0,0.18128988]
[1762108027023,0.58625946,110360.0,110350.0,0.18128988]
[1762108027270,0.40503438,110360.0,110350.0,0.18128988]
[1762108027687,0.58625946,110360.0,110350.0,0.18128988]
[1762108027892,0.40503438,110360.0,110350.0,0.18128988]
[1762108028288,0.58625946,110360.0,110350.0,0.18128988]
[1762108029070,0.40503438,110360.0,110350.0,0.18128988]
[1762108029281,0.58625946,110360.0,110350.0,0.18128988]
[1762108029805,0.40503438,110360.0,110350.0,0.18128988]
[1762108030870,0.58625946,110360.0,110350.0,0.18128988]
[1762108031450,0.40503438,110360.0,110350.0,0.18128988]
[1762108033750,0.03455435,110360.0,110350.0,0.20995988]
[1762108033967,0.006,110360.0,110350.0,0.27375758]
[1762108034172,0.006,110360.0,110350.0,0.23350988]
[1762108047239,0.006,110360.0,110350.0,0.26073979]
[1762108048389,0.006,110360.0,110350.0,0.63121982]
[1762108048740,0.63115333,110380.0,110370.0,0.18120866]
[1762108049097,0.44996109,110380.0,110370.0,0.19784866]
[1762108049354,0.63115333,110380.0,110370.0,0.19784866]
[1762108049542,0.44996109,110380.0,110370.0,0.19784866]
[1762108049901,0.45696109,110380.0,110370.0,0.19784866]
[1762108050514,0.83044112,110380.0,110370.0,0.19784866]
[1762108051392,0.81087769,110380.0,110370.0,0.19784866]
[1762108053998,0.83043784,110380.0,110370.0,0.19784866]
[1762108054175,1.01163008,110380.0,110370.0,0.19784866]
[1762108054384,1.01163008,110380.0,110370.0,0.18120866]
[1762108056094,1.01163008,110380.0,110360.0,0.19328012]
[1762108056297,1.10144909,110380.0,110360.0,0.20992012]
[1762108056699,0.18120866,110370.0,110360.0,0.20992012]
[1762108056899,1.08188894,110380.0,110360.0,0.20992012]
[1762108057119,1.10145329,110380.0,110360.0,0.20992012]
[1762108057277,1.09845329,110380.0,110360.0,0.20992012]
[1762108057679,0.18120866,110370.0,110360.0,0.20992012]
[1762108058714,1.07488894,110380.0,110360.0,0.20992012]
[1762108058973,0.004,110370.0,110360.0,0.20992012]
[1762108059517,0.002,110370.0,110360.0,0.20992012]
[1762108059715,0.18320866,110370.0,110360.0,0.20992012]
[1762108060233,0.002,110370.0,110360.0,0.20992012]
[1762108060436,0.18320866,110370.0,110360.0,0.20992012]
[1762108061201,0.002,110370.0,110360.0,0.20992012]
[1762108061685,0.006,110370.0,110360.0,0.20992012]
[1762108062790,0.18720866,110370.0,110360.0,0.20992012]
[1762108063184,0.006,110370.0,110360.0,0.20992012]
[1762108064946,0.18720866,110370.0,110360.0,0.20992012]
[1762108066480,0.55757714,110370.0,110360.0,0.20992012]
[1762108069842,0.37636848,110370.0,110360.0,0.20992012]
[1762108070480,0.55757714,110370.0,110360.0,0.20992012]
[1762108075286,0.37636848,110370.0,110360.0,0.20992012]
[1762108076387,0.55757714,110370.0,110360.0,0.20992012]
[1762108077585,0.37636848,110370.0,110360.0,0.20992012]
[1762108079860,0.55757714,110370.0,110360.0,0.20992012]
[1762108080067,0.37636848,110370.0,110360.0,0.20992012]
[1762108081114,0.55757714,110370.0,110360.0,0.19328012]
[1762108082134,0.64739615,110370.0,110350.0,0.22981085]
[1762108082336,0.64739615,110370.0,110350.0,0.19035195]
[1762108082337,1.00348747,110360.0,110350.0,0.19035195]
[1762108083372,0.82226239,110360.0,110350.0,0.19035195]
[1762108083576,0.45189391,110360.0,110350.0,0.19035195]
[1762108084379,0.45289391,110360.0,110350.0,0.19035195]
[1762108087154,0.82326239,110360.0,110350.0,0.19035195]
[1762108090561,0.85378127,110360.0,110350.0,0.19035195]
[1762108091145,0.82326239,110360.0,110350.0,0.19035195]
[1762108091766,0.85049529,110360.0,110350.0,0.19035195]
[1762108095203,0.85049529,110360.0,110350.0,0.20645195]
[1762108100186,0.85049529,110360.0,110350.0,0.19035195]
[1762108103168,0.85030566,110360.0,110350.0,0.19035195]
[1762108106782,0.1095687,110360.0,110350.0,0.19035195]
[1762108107031,0.85030566,110360.0,110350.0,0.19035195]
[1762108112272,0.8699036,110360.0,110350.0,0.19035195]
[1762108112475,1.05112868,110360.0,110350.0,0.19035195]
[1762108112680,0.8699036,110360.0,110350.0,0.19035195]
[1762108115793,0.85030566,110360.0,110350.0,0.19035195]
[1762108117316,0.47993718,110360.0,110350.0,0.19035195]
[1762108117778,0.47993718,110360.0,110350.0,0.61273043]
[1762108117779,0.0282329,110360.0,110350.0,0.61273043]
[1762108117923,0.001,110360.0,110350.0,0.65339534]
[1762108123785,0.00081037,110360.0,110350.0,0.65339534]
[1762108128303,0.00081037,110360.0,110350.0,0.65333085]
[1762108139027,0.00887223,110380.0,110370.0,0.18120866]
[1762108139198,1.06689735,110390.0,110380.0,0.18119224]
[1762108139737,1.07606001,110390.0,110380.0,0.18119224]
[1762108140937,1.07906001,110390.0,110380.0,0.18119224]
[1762108141932,1.08606001,110390.0,110380.0,0.18119224]
[1762108145626,0.18119224,110380.0,110370.0,0.19363866]
[1762108145864,0.57107036,110380.0,110370.0,0.19363866]
[1762108146472,0.57093329,110380.0,110370.0,0.19363866]
[1762108147011,0.57693329,110380.0,110370.0,0.19363866]
[1762108149248,0.6667523,110380.0,110360.0,0.19027131]
[1762108149466,0.4744805,110370.0,110360.0,0.19027131]
[1762108149697,0.63303808,110370.0,110360.0,0.19027131]
[1762108151901,0.66026806,110370.0,110360.0,0.19027131]
[1762108153159,0.66226806,110370.0,110360.0,0.19027131]
[1762108153370,0.66626806,110370.0,110360.0,0.19027131]
[1762108154984,0.4850594,110370.0,110360.0,0.19027131]
[1762108155193,0.4850594,110370.0,110360.0,0.20567131]
[1762108155194,0.11475541,110370.0,110360.0,0.20567131]
[1762108157309,0.08752543,110370.0,110360.0,0.20567131]
[1762108157529,0.006,110370.0,110360.0,0.24278131]
[1762108158434,0.0058102,110370.0,110360.0,0.24278131]
[1762108170602,0.0058102,110370.0,110360.0,0.69463603]
[1762108171648,0.0018102,110370.0,110360.0,0.69463603]
[1762108171856,0.01092256,110390.0,110380.0,0.18119224]
[1762108172011,0.01092256,110390.0,110380.0,0.20883224]
[1762108172211,0.01092256,110390.0,110380.0,0.23230224]
[1762108172413,0.01092256,110390.0,110380.0,0.27070501]
[1762108173009,0.01492256,110390.0,110380.0,0.27070501]
[1762108173214,0.01692256,110390.0,110380.0,0.27070501]
[1762108174302,0.01292256,110390.0,110380.0,0.27070501]
[1762108174613,0.01492256,110390.0,110380.0,0.23230224]
[1762108174817,0.01692256,110390.0,110380.0,0.23230224]
[1762108175022,0.01092256,110390.0,110380.0,0.23230224]
[1762108187990,0.01092256,110390.0,110380.0,0.60260623]
[1762108190311,0.01092256,110390.0,110380.0,0.60244719]
[1762108190784,0.01092256,110390.0,110380.0,0.20883224]
[1762108191546,0.01092256,110390.0,110380.0,0.23283224]
[1762108191713,0.01692256,110390.0,110380.0,0.23283224]
[1762108192149,0.01492256,110390.0,110380.0,0.23283224]
[1762108192354,0.01092256,110390.0,110380.0,0.23283224]
[1762108192567,0.01492256,110390.0,110380.0,0.23283224]
[1762108193544,0.01692256,110390.0,110380.0,0.23283224]
[1762108197879,0.19809839,110390.0,110380.0,0.23283224]
[1762108198125,0.01692256,110390.0,110380.0,0.23283224]
[1762108198888,0.19809839,110390.0,110380.0,0.23283224]
[1762108199091,0.01692256,110390.0,110380.0,0.23283224]
[1762108199299,0.19809839,110390.0,110380.0,0.23283224]
[1762108200513,0.01692256,110390.0,110380.0,0.23283224]
[1762108200946,0.19809839,110390.0,110380.0,0.23283224]
[1762108201452,0.01692256,110390.0,110380.0,0.23283224]
[1762108201684,0.63596114,110390.0,110380.0,0.18119224]
[1762108201886,0.62401154,110390.0,110380.0,0.18119224]
[1762108202103,0.65123816,110390.0,110370.0,0.19343371]
[1762108202321,1.00300757,110380.0,110360.0,0.20268131]
[1762108202561,0.55135361,110370.0,110360.0,0.21778131]
[1762108202826,0.37014495,110370.0,110360.0,0.21778131]
[1762108203443,0.39737479,110370.0,110360.0,0.21778131]
[1762108204266,0.39937479,110370.0,110360.0,0.21778131]
[1762108204625,0.40337479,110370.0,110360.0,0.24178131]
[1762108204834,0.03322984,110370.0,110360.0,0.21778131]
[1762108211583,0.006,110370.0,110360.0,0.21778131]
[1762108212187,0.37614495,110370.0,110360.0,0.21778131]
[1762108212614,0.37595515,110370.0,110360.0,0.21778131]
[1762108214549,0.55716381,110370.0,110360.0,0.21778131]
[1762108214756,0.55716381,110370.0,110350.0,0.20242195]
[1762108214975,0.65554859,110360.0,110350.0,0.24422086]
[1762108215183,1.00304041,110360.0,110350.0,4.838e-05]
[1762108215812,1.0302743,110360.0,110350.0,4.838e-05]
[1762108216022,1.0302743,110360.0,110350.0,0.18128988]
[1762108216338,1.0302743,110360.0,110350.0,0.18228988]
[1762108216559,0.66012935,110360.0,110350.0,0.18228988]
[1762108216977,0.66012935,110360.0,110350.0,0.18428988]
[1762108217574,0.47890427,110360.0,110350.0,0.18428988]
[1762108217786,0.02723389,110360.0,110350.0,0.64501053]
[1762108217982,0.55739157,110370.0,110360.0,0.18122508]
[1762108218193,0.5846237,110370.0,110360.0,0.19751508]
[1762108218392,0.95476865,110370.0,110360.0,0.19751508]
[1762108218614,0.77355936,110370.0,110360.0,0.19751508]
[1762108218819,0.02723213,110370.0,110360.0,0.20927508]
[1762108219118,0.11075756,110370.0,110360.0,0.20927508]
[1762108219327,0.11175756,110370.0,110360.0,0.20927508]
[1762108220884,0.29296622,110370.0,110360.0,0.20927508]
[1762108221082,0.11175756,110370.0,110360.0,0.20927508]
[1762108221444,0.48190251,110370.0,110360.0,0.20927508]
[1762108221650,0.66311117,110370.0,110360.0,0.20927508]
[1762108222086,0.66311117,110370.0,110360.0,0.19298508]
[1762108222491,0.48190251,110370.0,110360.0,0.19298508]
[1762108223761,0.48190251,110370.0,110360.0,0.20927508]
[1762108226673,0.003,110370.0,110360.0,0.68404783]
[1762108228041,0.001,110370.0,110360.0,0.68404783]
[1762108228254,1.06672399,110390.0,110380.0,0.18119224]
[1762108228467,0.88554816,110390.0,110380.0,0.19624224]
[1762108229532,1.06872399,110390.0,110380.0,0.19624224]
[1762108229739,1.07372399,110390.0,110380.0,0.19624224]
[1762108232097,1.07372399,110390.0,110380.0,0.20849224]
[1762108233079,1.07372399,110390.0,110380.0,0.0273]
[1762108233471,0.18119224,110380.0,110370.0,0.19344374]
[1762108233671,0.55133719,110380.0,110370.0,0.20849374]
[1762108234522,0.55233719,110380.0,110370.0,0.20849374]
[1762108234684,0.55433719,110380.0,110370.0,0.20849374]
[1762108234887,0.92448214,110380.0,110360.0,0.20204633]
[1762108235073,0.55433719,110380.0,110370.0,0.18120866]
[1762108235272,0.08152543,110370.0,110360.0,0.21709633]
[1762108235520,0.10417651,110370.0,110360.0,0.21709633]
[1762108236281,0.65553012,110370.0,110360.0,0.21709633]
[1762108236480,0.45167038,110370.0,110360.0,0.21709633]
[1762108237499,0.45167038,110370.0,110360.0,0.24175633]
[1762108237907,0.45167038,110370.0,110360.0,0.24375633]
[1762108238142,0.18119224,110380.0,110370.0,0.18120866]
[1762108238325,0.18120866,110370.0,110360.0,0.22009633]
[1762108239058,0.63286262,110380.0,110360.0,0.21809633]
[1762108239359,0.18120866,110370.0,110360.0,0.21809633]
[1762108239760,0.55135361,110370.0,110360.0,0.21709633]
[1762108239938,0.55135361,110370.0,110360.0,0.19028633]
[1762108240452,0.55135361,110370.0,110360.0,0.20533633]
[1762108240601,0.55135361,110370.0,110360.0,0.20633633]
[1762108240815,0.55135361,110370.0,110360.0,0.20833633]
[1762108241427,0.55135361,110370.0,110360.0,0.20533633]
[1762108241648,0.55235361,110370.0,110360.0,0.20533633]
[1762108241850,0.55435361,110370.0,110360.0,0.20533633]
[1762108242699,0.003,110370.0,110360.0,0.6546959]
[1762108243731,0.001,110370.0,110360.0,0.6546959]
[1762108244005,0.08152543,110380.0,110370.0,0.18120866]
[1762108244202,0.08152543,110380.0,110370.0,0.23316866]
[1762108245430,0.08152543,110380.0,110370.0,0.23516866]
[1762108246255,0.08152543,110380.0,110370.0,0.23616866]
[1762108249014,0.77680659,110390.0,110380.0,0.18119224]
[1762108249195,0.85833202,110390.0,110380.0,0.19774224]
[1762108250170,0.86033202,110390.0,110380.0,0.19774224]
[1762108250539,0.86133202,110390.0,110380.0,0.19774224]
[1762108252438,0.86145098,110390.0,110380.0,0.19774224]
[1762108252647,0.86145098,110390.0,110380.0,0.20932224]
[1762108253647,0.49118707,110390.0,110380.0,0.20932224]
[1762108260207,0.49118707,110390.0,110380.0,0.25206633]
[1762108260430,0.09544799,110390.0,110380.0,0.27669633]
[1762108261321,0.01392256,110390.0,110380.0,0.27669633]
[1762108294751,0.01392256,110390.0,110380.0,0.23395224]
[1762108306374,0.01292256,110390.0,110380.0,0.23395224]
[1762108306567,0.01292256,110390.0,110380.0,0.23495224]
[1762108307276,0.01092256,110390.0,110380.0,0.23495224]
[1762108307499,0.01092256,110390.0,110380.0,0.23695224]
[1762108310564,0.01092256,110390.0,110380.0,0.31460112]
[1762108312558,0.01092256,110390.0,110380.0,0.68476709]
[1762108313164,0.01092256,110390.0,110380.0,0.68514803]
[1762108313900,0.01092256,110390.0,110380.0,0.31498206]
[1762108314108,0.01092256,110390.0,110380.0,0.60749915]
[1762108317632,0.01092256,110390.0,110380.0,0.23733318]
[1762108317871,0.01092256,110390.0,110380.0,0.60749915]
[1762108320999,0.01092256,110390.0,110380.0,0.97766512]
[1762108321200,0.01092256,110390.0,110380.0,1.00488633]
[1762108321406,0.01092256,110390.0,110380.0,1.09470534]
[1762108321634,0.01092256,110390.0,110380.0,0.72453937]
[1762108322148,0.01092256,110390.0,110380.0,1.09470534]
[1762108322341,0.01092256,110390.0,110380.0,0.72453937]
[1762108324090,0.01092256,110390.0,110380.0,0.26455439]
[1762108324294,0.01092256,110390.0,110380.0,0.23733318]
[1762108329265,0.0381458,110390.0,110380.0,0.23733318]
[1762108329469,0.03792561,110390.0,110380.0,0.23733318]
[1762108329678,0.0381458,110390.0,110380.0,0.23733318]
[1762108330712,0.11967123,110390.0,110380.0,0.21270318]
[1762108331258,0.11967123,110390.0,110380.0,0.23729318]
[1762108331461,0.11967123,110390.0,110380.0,0.23429318]
[1762108331691,0.12267123,110390.0,110380.0,0.23429318]
[1762108336353,0.0411458,110390.0,110380.0,0.23429318]
[1762108336765,0.0411458,110390.0,110380.0,0.60445915]
[1762108340759,0.0411458,110390.0,110380.0,0.68425093]
[1762108343505,0.0401458,110390.0,110380.0,1.0544169]
[1762108343864,0.0391458,110390.0,110380.0,1.0544169]
[1762108344065,0.0381458,110390.0,110380.0,1.0544169]
[1762108344288,0.0401458,110390.0,110380.0,1.0554169]
[1762108344604,0.0381458,110390.0,110380.0,1.0554169]
[1762108345141,0.0381458,110390.0,110380.0,1.0574169]
[1762108348690,0.0381458,110390.0,110380.0,0.68725093]
[1762108349565,0.0381458,110390.0,110380.0,1.0574169]
[1762108349974,0.01092256,110390.0,110380.0,1.0574169]
[1762108370473,0.01092256,110390.0,110380.0,1.08463621]
[1762108374416,0.01092256,110390.0,110380.0,0.71436519]
[1762108378752,0.01092256,110390.0,110380.0,0.71236519]
[1762108379192,0.01092256,110390.0,110380.0,0.72036519]
[1762108379659,0.01092256,110390.0,110380.0,0.71936519]
[1762108379967,0.01092256,110390.0,110380.0,0.72336519]
[1762108391603,0.01092256,110390.0,110380.0,0.69614588]
[1762108411249,0.01092256,110390.0,110380.0,0.67982588]
[1762108415907,0.01073274,110390.0,110380.0,0.67982588]
[1762108416564,0.01073274,110390.0,110380.0,0.67852934]
[1762108425319,0.01073274,110390.0,110380.0,0.68926208]
[1762108431181,0.00918479,110390.0,110380.0,0.68926208]
[1762108431379,0.00918479,110390.0,110380.0,0.68869272]
[1762108435123,0.00918479,110390.0,110380.0,0.68069272]
[1762108435472,0.00918479,110390.0,110380.0,0.67669272]
[1762108435645,0.00918479,110390.0,110380.0,0.67869272]
[1762108435957,0.00918479,110390.0,110380.0,0.68269272]
[1762108436432,0.00918479,110390.0,110380.0,1.05285466]
[1762108439615,0.00918479,110390.0,110380.0,0.22210728]
[1762108439836,0.00918479,110390.0,110380.0,0.56762871]
[1762108440029,0.03640553,110390.0,110380.0,0.59045871]
[1762108440266,0.03640553,110390.0,110380.0,0.22034728]
[1762108440917,0.03640553,110390.0,110380.0,0.58445871]
[1762108442023,0.03640553,110390.0,110380.0,0.21434728]
[1762108442199,0.03640553,110390.0,110380.0,0.58445871]
[1762108443203,0.03640553,110390.0,110380.0,0.21434728]
[1762108443407,0.03640553,110390.0,110380.0,0.16338728]
[1762108443620,0.40651696,110390.0,110380.0,0.16338728]
[1762108444660,0.41051696,110390.0,110380.0,0.16338728]
[1762108444865,0.41051696,110390.0,110380.0,0.17896728]
[1762108447177,0.59169279,110390.0,110380.0,0.16338728]
[1762108447382,0.59169279,110390.0,110380.0,0.00038094]
[1762108447598,0.6815118,110390.0,110380.0,0.00038094]
[1762108448155,1.05769408,110390.0,110380.0,0.00038094]
[1762108448336,1.07725365,110390.0,110380.0,0.00038094]
[1762108450170,0.98724481,110390.0,110380.0,0.00038094]
[1762108453606,0.98724481,110390.0,110380.0,0.18157318]
[1762108453820,0.96768524,110390.0,110380.0,0.00038094]
[1762108456172,0.96768524,110390.0,110380.0,0.18157318]
[1762108456369,0.96768524,110390.0,110380.0,0.00038094]
[1762108456611,1.05750425,110390.0,110380.0,0.00038094]
[1762108463145,0.96768524,110390.0,110380.0,0.18157318]
[1762108466998,0.96768524,110390.0,110380.0,0.00038094]
[1762108467337,0.6171196,110390.0,110380.0,0.00038094]
[1762108467539,0.98723103,110390.0,110380.0,0.00038094]
[1762108468735,0.98723103,110390.0,110380.0,0.18157318]
[1762108469144,0.8060552,110390.0,110380.0,0.18157318]
[1762108469351,0.43594377,110390.0,110380.0,0.21025318]
[1762108469552,0.39957165,110390.0,110380.0,0.58036461]
[1762108469933,0.05957165,110390.0,110380.0,0.58036461]
[1762108470133,0.04002586,110390.0,110380.0,0.21025318]
[1762108470945,0.04002586,110390.0,110380.0,0.23504318]
[1762108471343,0.04002586,110390.0,110380.0,0.21025318]
[1762108472784,0.04002586,110390.0,110380.0,0.23504318]
[1762108474372,0.04002586,110390.0,110380.0,0.21025318]
[1762108476548,0.04002586,110390.0,110380.0,0.23504318]
[1762108478271,0.04002586,110390.0,110380.0,0.21025318]
[1762108478686,0.04002586,110390.0,110380.0,0.18157318]
[1762108481050,0.22120169,110390.0,110380.0,0.18157318]
[1762108481230,0.05957165,110390.0,110380.0,0.18157318]
[1762108481395,0.04002586,110390.0,110380.0,0.18157318]
[1762108481601,0.22120169,110390.0,110380.0,0.18157318]
[1762108481802,0.24074748,110390.0,110380.0,0.18157318]
[1762108482261,0.61085891,110390.0,110380.0,0.18157318]
[1762108483299,0.24074748,110390.0,110380.0,0.18157318]
[1762108483646,0.05957165,110390.0,110380.0,0.18157318]
[1762108483848,0.04002586,110390.0,110380.0,0.18157318]
[1762108484047,0.04002586,110390.0,110380.0,0.19816318]
[1762108488425,0.04002586,110390.0,110380.0,0.21035318]
[1762108488806,0.04002586,110390.0,110380.0,0.23411318]
[1762108492062,0.04002586,110390.0,110380.0,0.21035318]
[1762108496473,0.04002586,110390.0,110380.0,0.23411318]
[1762108498445,0.04002586,110390.0,110380.0,0.60430352]
[1762108498647,0.01280512,110390.0,110380.0,0.68405583]
[1762108499711,0.01280512,110390.0,110380.0,0.60430352]
[1762108511937,0.01280512,110390.0,110380.0,0.6315272]
[1762108515171,0.01280512,110390.0,110380.0,0.26189686]
[1762108521277,0.01280512,110390.0,110380.0,0.23467318]
[1762108525908,0.19398095,110390.0,110380.0,0.01257094]
[1762108526105,0.58681826,110390.0,110380.0,0.18157318]
[1762108526391,0.56417129,110390.0,110380.0,0.18157318]
[1762108527328,0.19398095,110390.0,110380.0,0.18157318]
[1762108530002,0.27940908,110390.0,110380.0,0.18157318]
[1762108531887,0.21355979,110390.0,110380.0,0.18157318]
[1762108532026,0.21355979,110390.0,110380.0,0.00038094]
[1762108532225,0.24078545,110390.0,110380.0,0.00038094]
[1762108532439,0.64715807,110390.0,110380.0,0.00038094]
[1762108539195,0.62757923,110390.0,110380.0,0.00038094]
[1762108539394,0.73696212,110390.0,110380.0,0.00038094]
[1762108544546,0.73696212,110390.0,110380.0,0.18157318]
[1762108544725,0.55578629,110390.0,110380.0,0.18157318]
[1762108545536,0.52856063,110390.0,110380.0,0.18157318]
[1762108545993,0.70973646,110390.0,110380.0,0.18157318]
[1762108546718,0.52856063,110390.0,110380.0,0.18157318]
[1762108547077,0.70973646,110390.0,110380.0,0.18157318]
[1762108548886,0.52856063,110390.0,110380.0,0.18157318]
[1762108549106,0.70973646,110390.0,110380.0,0.18157318]
[1762108552758,0.70973646,110390.0,110380.0,0.00038094]
[1762108553112,0.70973646,110390.0,110380.0,0.18157318]
[1762108553538,0.52856063,110390.0,110380.0,0.18157318]
[1762108553919,0.06855128,110390.0,110380.0,0.18157318]
[1762108554127,0.0489874,110390.0,110380.0,0.18157318]
[1762108558499,0.41922097,110390.0,110380.0,0.19768318]
[1762108558697,0.43878485,110390.0,110380.0,0.19768318]
[1762108558915,0.43878485,110390.0,110380.0,0.18157318]
[1762108560272,0.61996068,110390.0,110380.0,0.18157318]
[1762108560673,0.43878485,110390.0,110380.0,0.18157318]
[1762108561283,0.61996068,110390.0,110380.0,0.18157318]
[1762108561696,0.61996068,110390.0,110380.0,0.00038094]
[1762108561901,0.70977969,110390.0,110380.0,0.18157318]
[1762108562490,0.70977969,110390.0,110380.0,0.00038094]
[1762108562700,1.04977969,110390.0,110380.0,0.00038094]
[1762108563106,1.0770072,110390.0,110380.0,0.00038094]
[1762108566603,0.70677363,110390.0,110380.0,0.00038094]
[1762108566804,1.0770072,110390.0,110380.0,0.00038094]
[1762108571379,1.10146205,110390.0,110380.0,0.00038094]
[1762108573281,1.0770072,110390.0,110380.0,0.00038094]
[1762108574353,1.10146205,110390.0,110380.0,0.00038094]
[1762108575192,1.0770072,110390.0,110380.0,0.00038094]
[1762108576211,1.10146205,110390.0,110380.0,0.00038094]
[1762108578237,1.10146205,110390.0,110380.0,0.18157318]
[1762108578444,1.10146205,110390.0,110380.0,0.00038094]
[1762108578641,1.0770072,110390.0,110380.0,0.00038094]
[1762108578849,1.0770072,110390.0,110380.0,0.18157318]
[1762108579450,1.0770072,110390.0,110380.0,0.00038094]
[1762108579677,1.0770072,110390.0,110380.0,0.18157318]
[1762108579913,1.0770072,110390.0,110380.0,0.00038094]
[1762108583552,1.47169562,110390.0,110380.0,0.00038094]
[1762108583727,1.10146205,110390.0,110380.0,0.00038094]
[1762108584833,0.73122848,110390.0,110380.0,0.00038094]
[1762108585033,1.10146205,110390.0,110380.0,0.00038094]
[1762108594890,1.10146205,110390.0,110380.0,0.18157318]
[1762108595304,1.10146205,110390.0,110380.0,0.00038094]
[1762108598138,1.10146205,110390.0,110380.0,0.18157318]
[1762108599964,0.73122848,110390.0,110380.0,0.18157318]
[1762108600169,1.10146205,110390.0,110380.0,0.18157318]
[1762108611106,0.46023364,110390.0,110380.0,0.18157318]
[1762108611329,0.46023364,110390.0,110380.0,0.19721318]
[1762108611793,0.46023364,110390.0,110380.0,0.20865318]
[1762108612481,0.43577879,110390.0,110380.0,0.20865318]
[1762108615383,0.43577879,110390.0,110380.0,0.18157318]
[1762108618549,0.43577879,110390.0,110380.0,0.19721318]
[1762108618750,0.43577879,110390.0,110380.0,0.20865318]
[1762108620913,0.5255978,110390.0,110380.0,0.20865318]
[1762108621984,0.43577879,110390.0,110380.0,0.20865318]
[1762108622183,0.39959651,110390.0,110380.0,0.23204318]
[1762108622408,0.032369,110390.0,110380.0,0.23204318]
[1762108622617,0.01280512,110390.0,110380.0,0.23204318]
[1762108631811,0.01280512,110390.0,110380.0,0.20865318]
[1762108632014,0.01280512,110390.0,110380.0,0.23587914]
[1762108633608,0.01280512,110390.0,110380.0,0.25926914]
[1762108634488,0.01280512,110390.0,110380.0,0.22023914]
[1762108635001,0.01280512,110390.0,110380.0,0.23543914]
[1762108635701,0.01280512,110390.0,110380.0,0.25915914]
[1762108638336,0.19398095,110390.0,110380.0,0.25915914]
[1762108638972,0.19398095,110390.0,110380.0,0.0542469]
[1762108639192,0.66647718,110390.0,110380.0,0.0276069]
[1762108639361,0.70265946,110390.0,110380.0,0.00038094]
[1762108644493,0.70227972,110390.0,110380.0,0.00038094]
[1762108645079,0.61957121,110390.0,110380.0,0.00038094]
[1762108647171,0.64679941,110390.0,110380.0,0.00038094]
[1762108649086,0.64679941,110390.0,110380.0,0.18157318]
[1762108649307,0.64679941,110390.0,110380.0,0.00038094]
[1762108655897,0.64679941,110390.0,110380.0,0.18157318]
[1762108656191,0.09540602,110390.0,110380.0,0.18157318]
[1762108656394,0.07583586,110390.0,110380.0,0.20940318]
[1762108656616,0.44605342,110390.0,110380.0,0.20940318]
[1762108656849,0.09540602,110390.0,110380.0,0.20940318]
[1762108657064,0.07583586,110390.0,110380.0,0.23281318]
[1762108657472,0.03965358,110390.0,110380.0,0.23281318]
[1762108657613,0.19360121,110390.0,110380.0,0.23281318]
[1762108657819,0.21317137,110390.0,110380.0,0.23281318]
[1762108658214,0.03199554,110390.0,110380.0,0.23281318]
[1762108658460,0.01242538,110390.0,110380.0,0.20940318]
[1762108659035,0.01242538,110390.0,110380.0,0.23281318]
[1762108662019,0.19360121,110390.0,110380.0,0.23281318]
[1762108662219,0.03199554,110390.0,110380.0,0.23281318]
[1762108662383,0.01242538,110390.0,110380.0,0.23281318]
[1762108666945,0.01242538,110390.0,110380.0,0.68538236]
[1762108667378,0.01242538,110390.0,110380.0,0.71260604]
[1762108671296,0.00842538,110390.0,110380.0,0.71260604]
[1762108671719,0.00842538,110390.0,110380.0,0.71860604]
[1762108681147,1e-08,110390.0,110380.0,0.71860604]
[1762108681267,1e-08,110390.0,110380.0,0.68838848]
[1762108681513,1e-08,110390.0,110380.0,1.05860604]
[1762108682405,1e-08,110390.0,110380.0,1.79824286]
[1762108683564,1e-08,110390.0,110380.0,1.4282914]